bitfinex/quotes_BTCUSD_20251102
["timestamp","ask_amount","ask_price","bid_price","bid_amount"]
[1762057327915,0.37618228,110290.0,110280.0,0.21105848]
[1762057328113,0.76782706,110290.0,110280.0,0.21105848]
[1762057328398,0.94916716,110290.0,110280.0,0.21105848]
[1762057328606,0.55752238,110290.0,110280.0,0.21105848]
[1762057328813,0.76782706,110290.0,110280.0,0.21105848]
[1762057329517,0.76782706,110290.0,110280.0,0.23399848]
[1762057329737,0.34,110290.0,110280.0,0.23399848]
[1762057329946,0.34,110290.0,110280.0,0.26125627]
[1762057331629,0.34,110290.0,110280.0,0.23399848]
[1762057331844,0.36725779,110290.0,110280.0,0.23399848]
[1762057332077,0.34,110290.0,110280.0,0.23399848]
[1762057333560,0.80953045,110300.0,110290.0,0.1813401]
[1762057333764,0.80953045,110300.0,110290.0,0.2323801]
[1762057334174,0.79530531,110300.0,110290.0,0.2323801]
[1762057335152,0.79630531,110300.0,110290.0,0.2323801]
[1762057335961,0.79830531,110300.0,110290.0,0.2323801]
[1762057336190,0.79830531,110300.0,110290.0,0.2333801]
[1762057336390,0.79530531,110300.0,110290.0,0.2333801]
[1762057337298,0.97662897,110300.0,110290.0,0.2333801]
[1762057338110,0.58498419,110300.0,110290.0,0.2333801]
[1762057338305,0.97662897,110300.0,110290.0,0.2333801]
[1762057338863,0.02747825,110300.0,110290.0,0.27601476]
[1762057339068,0.00022046,110300.0,110290.0,0.23376151]
[1762057342435,0.01444334,110300.0,110290.0,0.23376151]
[1762057342769,0.00022046,110300.0,110290.0,0.23376151]
[1762057349840,0.00022046,110300.0,110290.0,0.23576151]
[1762057350318,0.18154412,110300.0,110290.0,0.23776151]
[1762057350526,0.00022046,110300.0,110290.0,0.23776151]
[1762057353028,0.5731889,110300.0,110290.0,0.03348141]
[1762057353296,0.58741171,110300.0,110290.0,0.21482151]
[1762057353484,0.5731889,110300.0,110290.0,0.03348141]
[1762057353689,0.5731889,110300.0,110290.0,0.21482151]
[1762057353870,0.5731889,110300.0,110290.0,0.03348141]
[1762057354070,0.18154412,110300.0,110290.0,0.03348141]
[1762057354276,0.5731889,110300.0,110290.0,0.21482151]
[1762057355252,0.5731889,110300.0,110290.0,0.03348141]
[1762057355401,0.5731889,110300.0,110290.0,0.21482151]
[1762057356189,0.5731889,110300.0,110290.0,0.03348141]
[1762057356395,0.58741193,110300.0,110290.0,0.03348141]
[1762057357688,0.19576715,110300.0,110290.0,0.03348141]
[1762057357911,0.58741193,110300.0,110290.0,0.25760552]
[1762057358115,0.58741193,110300.0,110290.0,0.23947151]
[1762057359856,0.58741193,110300.0,110290.0,0.05813141]
[1762057360467,0.58741193,110300.0,110290.0,0.23947151]
[1762057360639,0.40608827,110300.0,110290.0,0.23947151]
[1762057361486,0.58741193,110300.0,110290.0,0.23947151]
[1762057361697,0.58741193,110300.0,110290.0,0.21482151]
[1762057363453,0.58741193,110300.0,110290.0,0.23947151]
[1762057366963,0.19576715,110300.0,110290.0,0.23947151]
[1762057367170,0.58741193,110300.0,110290.0,0.23947151]
[1762057367379,0.97874089,110300.0,110290.0,0.05813141]
[1762057369055,0.97874089,110300.0,110290.0,0.23947151]
[1762057371216,0.97874089,110300.0,110290.0,0.05813141]
[1762057371804,0.40593036,110300.0,110290.0,0.25760552]
[1762057372007,0.40593036,110300.0,110290.0,0.23947151]
[1762057377056,0.40593036,110300.0,110290.0,0.63095838]
[1762057377057,0.01444349,110300.0,110290.0,0.63095838]
[1762057377277,0.01444349,110300.0,110290.0,0.32929052]
[1762057378310,0.01444349,110300.0,110290.0,0.23947151]
[1762057386511,0.00022046,110300.0,110290.0,0.63095838]
[1762057386667,0.00022046,110300.0,110290.0,0.63195838]
[1762057395483,0.00022046,110300.0,110290.0,0.24047151]
[1762057395607,0.00022046,110300.0,110290.0,0.63195838]
[1762057396006,0.00022046,110300.0,110290.0,1.38808276]
[1762057396217,0.00022046,110300.0,110290.0,1.45329247]
[1762057396952,0.00022046,110300.0,110290.0,1.0618056]
[1762057397471,0.00022046,110300.0,110290.0,1.45329247]
[1762057397899,0.00022046,110300.0,110290.0,1.44829247]
[1762057398127,0.00022046,110300.0,110290.0,1.45429247]
[1762057398350,1e-08,110300.0,110290.0,1.47529246]
[1762057398771,1e-08,110300.0,110290.0,1.47892525]
[1762057405638,1e-08,110300.0,110290.0,1.08643838]
[1762057405840,1e-08,110300.0,110290.0,1.08743838]
[1762057408214,1e-08,110300.0,110290.0,1.23623838]
[1762057409566,1e-08,110300.0,110290.0,1.22623839]
[1762057409774,1e-08,110300.0,110290.0,1.2216056]
[1762057410183,1e-08,110300.0,110290.0,1.15639589]
[1762057410394,1e-08,110300.0,110290.0,1.14039589]
[1762057410737,1e-08,110300.0,110290.0,1.15239589]
[1762057411114,1e-08,110300.0,110290.0,1.14039589]
[1762057411239,1e-08,110300.0,110290.0,1.14439589]
[1762057411441,1e-08,110300.0,110290.0,1.15239589]
[1762057413439,1e-08,110300.0,110290.0,0.76090902]
[1762057414073,1e-08,110300.0,110290.0,0.61210902]
[1762057414275,1e-08,110300.0,110290.0,0.67731873]
[1762057419559,1e-08,110300.0,110290.0,1.0688056]
[1762057420633,1e-08,110300.0,110290.0,0.67731873]
[1762057425364,1e-08,110300.0,110290.0,1.0688056]
[1762057427464,1e-08,110300.0,110290.0,0.67731873]
[1762057429220,0.39132436,110300.0,110290.0,0.65268122]
[1762057429468,0.39132436,110300.0,110290.0,0.24647151]
[1762057429670,1e-08,110300.0,110290.0,0.24647151]
[1762057430216,1e-08,110300.0,110290.0,0.29534906]
[1762057430946,1e-08,110300.0,110290.0,0.28734906]
[1762057431388,1e-08,110300.0,110290.0,0.29234906]
[1762057431764,1e-08,110300.0,110290.0,0.28834906]
[1762057432179,1e-08,110300.0,110290.0,0.29034906]
[1762057434758,0.39132436,110300.0,110290.0,0.29034906]
[1762057435402,1e-08,110300.0,110290.0,0.29034906]
[1762057437485,1e-08,110300.0,110290.0,0.6967282]
[1762057437683,1e-08,110300.0,110290.0,0.6977282]
[1762057438143,1e-08,110300.0,110290.0,0.30640385]
[1762057439491,1e-08,110300.0,110290.0,0.24147151]
[1762057441129,1e-08,110300.0,110290.0,0.24247151]
[1762057442043,1e-08,110300.0,110290.0,0.24147151]
[1762057446042,0.39132436,110300.0,110290.0,0.24147151]
[1762057446272,0.39132436,110300.0,110290.0,0.23647151]
[1762057446634,0.39132436,110300.0,110290.0,0.23847151]
[1762057446835,1e-08,110300.0,110290.0,0.23847151]
[1762057447264,1e-08,110300.0,110290.0,0.23647151]
[1762057447580,1e-08,110300.0,110290.0,0.23747151]
[1762057447805,1e-08,110300.0,110290.0,0.23647151]
[1762057448013,1e-08,110300.0,110290.0,0.23447151]
[1762057448187,1e-08,110300.0,110290.0,0.23747151]
[1762057451906,0.39132436,110300.0,110290.0,0.23747151]
[1762057452359,1e-08,110300.0,110290.0,0.23747151]
[1762057467465,1e-08,110300.0,110290.0,0.28634992]
[1762057484439,1e-08,110300.0,110290.0,0.76749328]
[1762057489448,1e-08,110300.0,110290.0,0.76745932]
[1762057493374,1e-08,110300.0,110290.0,0.67764031]
[1762057499532,1e-08,110300.0,110290.0,0.28634992]
[1762057499807,1e-08,110300.0,110290.0,0.67764031]
[1762057500967,1e-08,110300.0,110290.0,0.28634992]
[1762057501168,1e-08,110300.0,110290.0,0.67764031]
[1762057502426,1e-08,110300.0,110290.0,0.76745932]
[1762057502690,1e-08,110300.0,110290.0,0.76845932]
[1762057513000,1e-08,110300.0,110290.0,0.77209241]
[1762057514206,1e-08,110300.0,110290.0,0.723214]
[1762057526183,1e-08,110300.0,110290.0,1.45450439]
[1762057526400,1e-08,110300.0,110290.0,1.5197141]
[1762057527024,1e-08,110300.0,110290.0,1.5187141]
[1762057527236,1e-08,110300.0,110290.0,1.5167141]
[1762057527443,1e-08,110300.0,110290.0,1.5327141]
[1762057528340,1e-08,110300.0,110290.0,1.14142371]
[1762057528548,1e-08,110300.0,110290.0,1.14042371]
[1762057532237,1e-08,110300.0,110290.0,11.14042371]
[1762057533971,1e-08,110300.0,110290.0,10.74913332]
[1762057534220,1e-08,110300.0,110290.0,11.14042371]
[1762057537899,1e-08,110300.0,110290.0,11.0506047]
[1762057549181,1e-08,110300.0,110290.0,10.65931431]
[1762057549921,1e-08,110300.0,110290.0,11.05063703]
[1762057550309,1e-08,110300.0,110290.0,11.03963703]
[1762057550709,1e-08,110300.0,110290.0,11.04663703]
[1762057550985,1e-08,110300.0,110290.0,11.04163703]
[1762057551110,1e-08,110300.0,110290.0,11.04463703]
[1762057552611,1e-08,110300.0,110290.0,10.97942732]
[1762057553021,1e-08,110300.0,110290.0,11.04463703]
[1762057554293,1e-08,110300.0,110290.0,10.97942732]
[1762057555266,1e-08,110300.0,110290.0,11.04463703]
[1762057555471,1e-08,110300.0,110290.0,10.97942732]
[1762057557123,1e-08,110300.0,110290.0,11.04463703]
[1762057557524,1e-08,110300.0,110290.0,10.97942732]
[1762057558234,1e-08,110300.0,110290.0,11.04463703]
[1762057559339,1e-08,110300.0,110290.0,10.65331431]
[1762057559536,1e-08,110300.0,110290.0,11.04463703]
[1762057560565,1e-08,110300.0,110290.0,10.65331431]
[1762057560778,1e-08,110300.0,110290.0,11.04463703]
[1762057565620,1e-08,110300.0,110290.0,11.13445604]
[1762057568392,1e-08,110300.0,110290.0,11.13545604]
[1762057573573,1e-08,110300.0,110290.0,10.74413332]
[1762057573729,1e-08,110300.0,110290.0,11.04563703]
[1762057576485,1e-08,110300.0,110290.0,11.05563702]
[1762057578185,1e-08,110300.0,110290.0,11.20443702]
[1762057584350,1e-08,110300.0,110290.0,11.2406193]
[1762057584981,1e-08,110300.0,110290.0,11.17540959]
[1762057585396,1e-08,110300.0,110290.0,11.2582286]
[1762057585620,1e-08,110300.0,110290.0,11.2552286]
[1762057585789,1e-08,110300.0,110290.0,11.2622286]
[1762057586985,1e-08,110300.0,110290.0,11.65355132]
[1762057587198,1e-08,110300.0,110290.0,11.66355132]
[1762057587415,1e-08,110300.0,110290.0,11.2722286]
[1762057588296,1e-08,110300.0,110290.0,11.35376402]
[1762057589130,1e-08,110300.0,110290.0,11.2722286]
[1762057589597,1e-08,110300.0,110290.0,11.66355132]
[1762057589739,1e-08,110300.0,110290.0,11.2722286]
[1762057590092,1e-08,110300.0,110290.0,11.66355132]
[1762057590295,1e-08,110300.0,110290.0,11.2722286]
[1762057590905,1e-08,110300.0,110290.0,11.35376402]
[1762057591347,1e-08,110300.0,110290.0,11.2722286]
[1762057592238,1e-08,110300.0,110290.0,11.2712286]
[1762057592480,1e-08,110300.0,110290.0,11.2722286]
[1762057592690,1e-08,110300.0,110290.0,11.3678386]
[1762057592909,1e-08,110300.0,110290.0,11.2722286]
[1762057594646,1e-08,110300.0,110290.0,11.23604632]
[1762057594875,1e-08,110300.0,110290.0,11.30014072]
[1762057595066,1e-08,110300.0,110290.0,11.30114072]
[1762057595773,1e-08,110300.0,110290.0,11.23604632]
[1762057597503,1e-08,110300.0,110290.0,11.31758174]
[1762057597709,1e-08,110300.0,110290.0,11.23604632]
[1762057600183,1e-08,110300.0,110290.0,11.31758174]
[1762057602718,1e-08,110300.0,110290.0,11.23604632]
[1762057603426,1e-08,110300.0,110290.0,11.30117372]
[1762057605370,1e-08,110300.0,110290.0,11.23604632]
[1762057610231,1e-08,110300.0,110290.0,11.31758174]
[1762057610439,1e-08,110300.0,110290.0,11.35376402]
[1762057611458,1e-08,110300.0,110290.0,11.74464386]
[1762057622309,1e-08,110300.0,110290.0,12.13574514]
[1762057623796,1e-08,110300.0,110290.0,11.74464386]
[1762057639120,0.0042,110330.0,110320.0,0.18229079]
[1762057639389,0.0042,110330.0,110320.0,1.35329755]
[1762057639552,0.00486117,110330.0,110320.0,1.37687755]
[1762057639755,0.00486117,110330.0,110320.0,1.38107755]
[1762057640128,0.00486117,110330.0,110320.0,0.45007499]
[1762057640330,0.0053433,110330.0,110320.0,0.43477564]
[1762057643824,0.0053433,110330.0,110320.0,0.37874256]
[1762057644960,0.39644458,110330.0,110320.0,0.35416256]
[1762057645165,0.39644458,110330.0,110320.0,0.30113669]
[1762057645798,0.0053433,110330.0,110320.0,0.32428669]
[1762057649007,0.0053433,110330.0,110320.0,0.32528669]
[1762057649241,0.0053433,110330.0,110320.0,0.4151057]
[1762057649997,0.0053433,110330.0,110320.0,0.80620698]
[1762057650257,0.0053433,110330.0,110320.0,0.4141057]
[1762057651706,0.0053433,110330.0,110320.0,0.32428669]
[1762057652059,0.39644458,110330.0,110320.0,0.32428669]
[1762057652850,0.0053433,110330.0,110320.0,0.32428669]
[1762057653050,0.39644458,110330.0,110320.0,0.32428669]
[1762057655005,0.0053433,110330.0,110320.0,0.32428669]
[1762057655442,0.0053433,110330.0,110320.0,0.79077029]
[1762057655615,0.0053433,110330.0,110320.0,0.83959616]
[1762057656928,0.0053433,110330.0,110320.0,0.44849488]
[1762057664336,0.39644458,110330.0,110320.0,0.34996256]
[1762057664534,0.39644458,110330.0,110320.0,0.30113669]
[1762057665230,0.39644458,110330.0,110320.0,0.32521669]
[1762057665231,0.0053433,110330.0,110320.0,0.32521669]
[1762057665562,0.0053433,110330.0,110320.0,0.37504256]
[1762057665771,1e-08,110330.0,110320.0,1.69122739]
[1762057665964,1e-08,110340.0,110330.0,0.61966662]
[1762057666160,1e-08,110340.0,110330.0,1.46085408]
[1762057666656,1e-08,110340.0,110330.0,1.46448526]
[1762057666874,1e-08,110340.0,110330.0,1.45541018]
[1762057667079,1e-08,110340.0,110330.0,1.0633089]
[1762057667304,1e-08,110340.0,110330.0,1.12424949]
[1762057667746,1e-08,110340.0,110330.0,1.12824949]
[1762057668158,1e-08,110340.0,110330.0,0.73914821]
[1762057668384,1e-08,110340.0,110330.0,1.06512427]
[1762057668561,1e-08,110340.0,110330.0,0.67402299]
[1762057668811,1e-08,110340.0,110330.0,1.06512427]
[1762057669175,1e-08,110340.0,110330.0,1.11388723]
[1762057670184,1e-08,110340.0,110330.0,0.72278595]
[1762057671694,0.00022035,110340.0,110330.0,0.72278595]
[1762057672035,0.00022035,110340.0,110330.0,0.87158595]
[1762057673052,0.00022035,110340.0,110330.0,0.53158595]
[1762057678420,0.00022035,110340.0,110330.0,0.53058595]
[1762057678612,0.00022035,110340.0,110330.0,0.53158595]
[1762057679062,0.00022035,110340.0,110330.0,0.9226158]
[1762057679411,0.00022035,110340.0,110330.0,0.53158595]
[1762057681282,0.00022035,110340.0,110330.0,0.9226158]
[1762057683901,0.00022035,110340.0,110330.0,0.53158595]
[1762057684131,0.00022035,110340.0,110330.0,0.44176694]
[1762057688007,0.00022035,110340.0,110330.0,0.44076694]
[1762057688213,0.00022035,110340.0,110330.0,0.44176694]
[1762057689600,0.00022035,110340.0,110330.0,0.29296694]
[1762057691601,0.00022035,110340.0,110330.0,0.28933576]
[1762057693535,0.00022035,110340.0,110330.0,0.37915477]
[1762057697521,0.00022035,110340.0,110330.0,0.26425576]
[1762057697731,0.3912502,110340.0,110330.0,0.26425576]
[1762057697970,0.3912502,110340.0,110330.0,0.2154928]
[1762057698182,0.3911131,110340.0,110330.0,0.2154928]
[1762057702391,0.57237103,110340.0,110330.0,0.2154928]
[1762057704753,0.3911131,110340.0,110330.0,0.2154928]
[1762057705064,0.57237103,110340.0,110330.0,0.00608845]
[1762057705411,0.57237103,110340.0,110330.0,0.1873628]
[1762057705618,0.4000269,110340.0,110330.0,0.1873628]
[1762057705820,0.57237103,110340.0,110330.0,0.1873628]
[1762057708008,0.40040578,110340.0,110330.0,0.1873628]
[1762057708232,0.58166371,110340.0,110330.0,0.1873628]
[1762057709815,0.57237103,110340.0,110330.0,0.1873628]
[1762057711610,0.57237103,110340.0,110330.0,0.00608845]
[1762057712010,0.58144902,110340.0,110330.0,0.00608845]
[1762057712223,0.58144902,110340.0,110330.0,0.1873628]
[1762057712850,0.58144902,110340.0,110330.0,0.00608845]
[1762057713811,0.58144902,110340.0,110330.0,0.1873628]
[1762057714442,0.58144902,110340.0,110330.0,0.00608845]
[1762057715102,1.31247887,110340.0,110330.0,0.00608845]
[1762057720125,0.92144902,110340.0,110330.0,0.00608845]
[1762057720415,1.31247887,110340.0,110330.0,0.00608845]
[1762057720812,1.33972537,110340.0,110330.0,0.00608845]
[1762057721235,1.37590765,110340.0,110330.0,0.00608845]
[1762057728566,1.38590764,110340.0,110330.0,0.00608845]
[1762057728710,1.40647178,110340.0,110330.0,0.00608845]
[1762057729069,1.40547178,110340.0,110330.0,0.00608845]
[1762057731413,1.79745896,110340.0,110330.0,0.00608845]
[1762057731638,1.79814174,110340.0,110330.0,0.00608845]
[1762057731845,1.79714174,110340.0,110330.0,0.00608845]
[1762057732710,1.79814174,110340.0,110330.0,0.00608845]
[1762057732931,1.79714174,110340.0,110330.0,0.00608845]
[1762057733370,1.79814174,110340.0,110330.0,0.00608845]
[1762057733601,5.988171,110340.0,110330.0,0.00608845]
[1762057733831,4.83858085,110340.0,110330.0,0.00608845]
[1762057734293,1.44723189,110340.0,110330.0,0.00608845]
[1762057734501,1.42277516,110340.0,110330.0,0.00608845]
[1762057734920,1.40579278,110340.0,110330.0,0.00608845]
[1762057735340,1.39579279,110340.0,110330.0,0.00608845]
[1762057735556,1.40579278,110340.0,110330.0,0.00608845]
[1762057735772,1.39579279,110340.0,110330.0,0.00608845]
[1762057735926,1.40579278,110340.0,110330.0,0.00608845]
[1762057736511,1.39579279,110340.0,110330.0,0.00608845]
[1762057739044,1.41001184,110340.0,110330.0,0.00608845]
[1762057739179,1.39579279,110340.0,110330.0,0.00608845]
[1762057740908,1.78714175,110340.0,110330.0,0.00608845]
[1762057741118,1.8041333,110340.0,110330.0,0.00608845]
[1762057741296,1.80413366,110340.0,110330.0,0.00608845]
[1762057742148,1.80513366,110340.0,110330.0,0.00608845]
[1762057742355,1.80413366,110340.0,110330.0,0.00608845]
[1762057742557,1.81835281,110340.0,110330.0,0.00608845]
[1762057744438,1.8183612,110340.0,110330.0,0.00608845]
[1762057751612,1.7911147,110340.0,110330.0,0.00608845]
[1762057752629,1.77689555,110340.0,110330.0,0.00608845]
[1762057764051,1.38554659,110340.0,110330.0,0.00608845]
[1762057764723,1.36854629,110340.0,110330.0,0.00608845]
[1762057765011,1.38557195,110340.0,110330.0,0.00608845]
[1762057768532,1.7869209,110340.0,110330.0,0.00608845]
[1762057768739,0.59114848,110340.0,110330.0,0.00608845]
[1762057768943,1.3738464,110340.0,110330.0,0.00608845]
[1762057769354,1.34938967,110340.0,110330.0,0.00608845]
[1762057779438,1.34938967,110340.0,110330.0,10.00608845]
[1762057780075,1.36360872,110340.0,110330.0,10.00608845]
[1762057780555,0.95804071,110340.0,110330.0,10.09590746]
[1762057780980,0.94101505,110340.0,110330.0,10.00608845]
[1762057781546,0.94101505,110340.0,110330.0,10.1873628]
[1762057783597,0.95523348,110340.0,110330.0,10.1873628]
[1762057785282,0.93566934,110340.0,110330.0,10.00608845]
[1762057785918,1.3270183,110340.0,110330.0,10.00608845]
[1762057786515,1.3270183,110340.0,110330.0,10.1873628]
[1762057789198,1.3270183,110340.0,110330.0,10.00608845]
[1762057791531,0.93566934,110340.0,110330.0,10.27718181]
[1762057791757,0.93566934,110340.0,110330.0,10.1873628]
[1762057791960,1.3270183,110340.0,110330.0,10.1873628]
[1762057793369,0.93552367,110340.0,110330.0,10.1873628]
[1762057802080,0.93552367,110340.0,110330.0,10.00608845]
[1762057803278,0.93552367,110340.0,110330.0,10.1873628]
[1762057807720,0.93552367,110340.0,110330.0,10.00608845]
[1762057807920,1.34633096,110340.0,110330.0,10.00608845]
[1762057809290,1.36335358,110340.0,110330.0,10.00608845]
[1762057810373,1.36335431,110340.0,110330.0,10.00608845]
[1762057811648,1.34633096,110340.0,110330.0,10.00608845]
[1762057815598,1.40977162,110340.0,110330.0,10.00608845]
[1762057816168,1.41077162,110340.0,110330.0,10.00608845]
[1762057817907,1.40977162,110340.0,110330.0,10.00608845]
[1762057818319,1.38531489,110340.0,110330.0,10.00608845]
[1762057819470,1.38631489,110340.0,110330.0,10.00608845]
[1762057820542,1.38531489,110340.0,110330.0,10.00608845]
[1762057822171,1.38631489,110340.0,110330.0,10.00608845]
[1762057823339,1.38531489,110340.0,110330.0,10.00608845]
[1762057823686,1.38631489,110340.0,110330.0,10.00608845]
[1762057824086,4.40977162,110340.0,110330.0,10.00608845]
[1762057824451,4.4470219,110340.0,110330.0,10.00608845]
[1762057824654,4.4480219,110340.0,110330.0,10.00608845]
[1762057825074,4.4480219,110340.0,110330.0,10.00008845]
[1762057825284,4.46974129,110340.0,110330.0,10.00008845]
[1762057825485,4.47974128,110340.0,110330.0,10.00108845]
[1762057825694,4.48074128,110340.0,110330.0,10.00108845]
[1762057826257,4.44702922,110340.0,110330.0,10.00108845]
[1762057826472,4.44702922,110340.0,110330.0,10.00008845]
[1762057826942,4.44802922,110340.0,110330.0,10.00108845]
[1762057827551,4.64802922,110340.0,110330.0,10.00108845]
[1762057827676,4.6807486,110340.0,110330.0,10.00108845]
[1762057828218,4.64802922,110340.0,110330.0,10.00108845]
[1762057828817,4.64702922,110340.0,110330.0,10.00108845]
[1762057829025,4.64802922,110340.0,110330.0,10.00108845]
[1762057829617,4.65224898,110340.0,110330.0,10.00108845]
[1762057829795,4.64802922,110340.0,110330.0,10.00108845]
[1762057830180,4.64702922,110340.0,110330.0,10.00108845]
[1762057830598,4.64802922,110340.0,110330.0,10.00108845]
[1762057831002,4.6807486,110340.0,110330.0,10.00108845]
[1762057832154,4.63802923,110340.0,110330.0,10.00108845]
[1762057832342,4.64802922,110340.0,110330.0,10.00108845]
[1762057832584,4.64702922,110340.0,110330.0,10.00108845]
[1762057832794,4.66124897,110340.0,110330.0,10.00108845]
[1762057833628,4.66224897,110340.0,110330.0,10.00108845]
[1762057834702,4.66124897,110340.0,110330.0,10.00108845]
[1762057835129,4.69496835,110340.0,110330.0,10.00108845]
[1762057835336,4.68396836,110340.0,110330.0,10.00108845]
[1762057835542,4.69396835,110340.0,110330.0,10.00108845]
[1762057836019,4.69496835,110340.0,110330.0,10.00108845]
[1762057838770,4.68496836,110340.0,110330.0,10.00108845]
[1762057838986,4.69496835,110340.0,110330.0,10.00108845]
[1762057839190,4.68496836,110340.0,110330.0,10.00108845]
[1762057839401,4.69496835,110340.0,110330.0,10.00108845]
[1762057839606,4.68496836,110340.0,110330.0,10.00108845]
[1762057839808,4.69496835,110340.0,110330.0,10.00108845]
[1762057840484,4.69495086,110340.0,110330.0,10.00108845]
[1762057840699,4.69395086,110340.0,110330.0,10.00108845]
[1762057841116,4.69495086,110340.0,110330.0,10.00108845]
[1762057841764,4.69395086,110340.0,110330.0,10.00108845]
[1762057842002,4.69495649,110340.0,110330.0,10.00108845]
[1762057842226,4.6849565,110340.0,110330.0,10.00108845]
[1762057842435,4.69395649,110340.0,110330.0,10.00108845]
[1762057842649,4.69495649,110340.0,110330.0,10.00108845]
[1762057842835,4.69395649,110340.0,110330.0,10.00108845]
[1762057843045,4.69495649,110340.0,110330.0,10.00108845]
[1762057844614,4.66223711,110340.0,110330.0,9.568482]
[1762057844856,4.67047111,110340.0,110330.0,9.568482]
[1762057845718,4.67047111,110340.0,110330.0,9.567482]
[1762057845943,4.67147111,110340.0,110330.0,9.567482]
[1762057846152,4.67447111,110340.0,110330.0,9.567482]
[1762057846590,4.67147111,110340.0,110330.0,9.567482]
[1762057846790,4.67447111,110340.0,110330.0,9.567482]
[1762057850355,5.0656744,110340.0,110330.0,9.567482]
[1762057850665,5.11475675,110340.0,110330.0,9.567482]
[1762057851014,4.72355346,110340.0,110330.0,9.567482]
[1762057852087,5.11475675,110340.0,110330.0,9.567482]
[1762057854203,5.100537,110340.0,110330.0,9.567482]
[1762057854465,5.06781762,110340.0,110330.0,9.567482]
[1762057855279,4.67620095,110340.0,110330.0,9.567482]
[1762057855484,6.24218735,110340.0,110330.0,9.567482]
[1762057855887,6.24618735,110340.0,110330.0,9.567482]
[1762057856109,6.22976226,110340.0,110330.0,9.12396662]
[1762057858539,5.05527246,110340.0,110330.0,9.12396662]
[1762057858744,5.44676906,110340.0,110330.0,9.12396662]
[1762057858939,5.05427246,110340.0,110330.0,9.12396662]
[1762057859179,5.05527246,110340.0,110330.0,9.12396662]
[1762057861141,5.05427246,110340.0,110330.0,9.12396662]
[1762057861347,5.04527247,110340.0,110330.0,9.12396662]
[1762057861568,5.25427246,110340.0,110330.0,9.12396662]
[1762057861767,5.26427246,110340.0,110330.0,9.12396662]
[1762057861945,5.28876075,110340.0,110330.0,9.12396662]
[1762057863347,5.28876438,110340.0,110330.0,9.12396662]
[1762057864793,5.30298959,110340.0,110330.0,9.12396662]
[1762057865509,5.3077273,110340.0,110330.0,9.12396662]
[1762057866049,5.25058103,110340.0,110330.0,9.12396662]
[1762057866250,5.29966338,110340.0,110330.0,9.12396662]
[1762057867539,5.28543817,110340.0,110330.0,9.12396662]
[1762057868925,5.33232006,110340.0,110330.0,9.12396662]
[1762057870130,5.29965912,110340.0,110330.0,9.12396662]
[1762057871551,5.27240883,110340.0,110330.0,9.12396662]
[1762057872176,1.35784561,110340.0,110330.0,9.12396662]
[1762057872374,1.28637312,110340.0,110330.0,9.12396662]
[1762057872572,1.28637312,110340.0,110330.0,9.1512177]
[1762057872910,1.62637312,110340.0,110330.0,9.1512177]
[1762057873319,1.62737312,110340.0,110330.0,9.1512177]
[1762057873475,1.62637312,110340.0,110330.0,9.1512177]
[1762057873920,1.60187123,110340.0,110330.0,9.1512177]
[1762057874182,1.60187123,110340.0,110330.0,9.12396662]
[1762057874950,1.60287123,110340.0,110330.0,9.12396662]
[1762057875147,1.60187319,110340.0,110330.0,9.12396662]
[1762057875746,1.61609302,110340.0,110330.0,9.12396662]
[1762057876369,1.61709302,110340.0,110330.0,9.12396662]
[1762057879474,1.61609302,110340.0,110330.0,9.12396662]
[1762057880291,1.61607827,110340.0,110330.0,9.12396662]
[1762057882346,1.59908847,110340.0,110330.0,9.12396662]
[1762057883478,1.60008847,110340.0,110330.0,9.12396662]
[1762057884301,1.59908847,110340.0,110330.0,9.12396662]
[1762057887371,1.61607655,110340.0,110330.0,9.12396662]
[1762057887999,1.59908847,110340.0,110330.0,9.12396662]
[1762057888449,1.61607776,110340.0,110330.0,9.15121674]
[1762057889445,1.60185793,110340.0,110330.0,9.15121674]
[1762057889849,1.58486864,110340.0,110330.0,9.15121674]
[1762057893351,1.6018625,110340.0,110330.0,9.15121674]
[1762057901432,1.62636439,110340.0,110330.0,9.15121674]
[1762057902426,1.64058408,110340.0,110330.0,9.15121674]
[1762057903243,1.64062478,110340.0,110330.0,9.15121674]
[1762057903660,0.6214493,110340.0,110330.0,9.15121674]
[1762057903869,1.0129459,110340.0,110330.0,9.15121674]
[1762057904069,0.98842712,110340.0,110330.0,9.15121674]
[1762057904274,1.37992372,110340.0,110330.0,9.15121674]
[1762057913499,0.98842712,110340.0,110330.0,9.15121674]
[1762057913699,1.37992372,110340.0,110330.0,9.15121674]
[1762057914284,0.55671697,110340.0,110330.0,9.26942575]
[1762057914528,0.94821357,110340.0,110330.0,9.17960674]
[1762057914772,0.94821357,110340.0,110330.0,9.16323674]
[1762057914964,0.94821357,110340.0,110330.0,9.15121674]
[1762057915168,0.55671697,110340.0,110330.0,9.33249109]
[1762057916046,0.55371697,110340.0,110330.0,9.33249109]
[1762057916261,0.54995094,110340.0,110330.0,9.33249109]
[1762057916474,0.37069301,110340.0,110330.0,9.33249109]
[1762057917301,0.55195094,110340.0,110330.0,9.33249109]
[1762057917716,0.53233592,110340.0,110330.0,9.33249109]
[1762057917945,0.53233592,110340.0,110330.0,9.15121674]
[1762057918522,0.55193581,110340.0,110330.0,9.15121674]
[1762057919095,0.53233592,110340.0,110330.0,9.15121674]
[1762057919311,0.55193592,110340.0,110330.0,9.15121674]
[1762057921130,0.55193592,110340.0,110330.0,9.33249109]
[1762057922598,0.55193592,110340.0,110330.0,9.15121674]
[1762057923861,0.55193592,110340.0,110330.0,9.33249109]
[1762057924082,0.53233592,110340.0,110330.0,9.33249109]
[1762057924290,0.5519343,110340.0,110330.0,9.33249109]
[1762057924713,0.5519345,110340.0,110330.0,9.15121674]
[1762057924915,0.94311578,110340.0,110330.0,9.15121674]
[1762057926012,0.02159858,110340.0,110330.0,9.38318109]
[1762057926205,0.002,110340.0,110330.0,9.4730001]
[1762057926450,0.002,110340.0,110330.0,9.4740001]
[1762057926917,0.002,110340.0,110330.0,9.86418138]
[1762057927146,0.0002,110350.0,110340.0,0.18125793]
[1762057927359,0.0002,110350.0,110340.0,0.43069863]
[1762057927602,0.0002,110350.0,110340.0,0.41257284]
[1762057927833,0.0002,110350.0,110340.0,0.43981323]
[1762057929094,0.0012,110350.0,110340.0,0.43981323]
[1762057929277,0.0022,110350.0,110340.0,0.43981323]
[1762057930505,0.00200676,110350.0,110340.0,0.43981323]
[1762057931375,0.00100676,110350.0,110340.0,0.43981323]
[1762057931555,0.00100676,110350.0,110340.0,0.44181323]
[1762057931977,6.76e-06,110350.0,110340.0,0.44181323]
[1762057932204,6.76e-06,110350.0,110340.0,0.83399451]
[1762057932421,6.76e-06,110350.0,110340.0,0.44281323]
[1762057932859,0.00022708,110350.0,110340.0,0.44281323]
[1762057933947,0.00022708,110350.0,110340.0,0.44381323]
[1762057934169,0.00022708,110350.0,110340.0,0.14832629]
[1762057934399,0.18146858,110350.0,110340.0,0.05752039]
[1762057934607,0.57264986,110350.0,110340.0,0.05752039]